bitfinex/quotes_BTCUSD_20250123
["timestamp","ask_amount","ask_price","bid_price","bid_amount"]
[1737625281763,0.00029925,101910.0,101900.0,0.77406917]
[1737625282642,2.5e-07,101910.0,101900.0,0.77406917]
[1737625283124,2.5e-07,101910.0,101900.0,0.80451995]
[1737625284243,0.00029925,101920.0,101910.0,0.53970244]
[1737625284441,0.00029925,101920.0,101910.0,0.63704973]
[1737625284676,0.00029925,101920.0,101910.0,0.58704973]
[1737625284934,0.00029925,101920.0,101910.0,0.47626101]
[1737625285180,0.00029925,101920.0,101910.0,0.50626101]
[1737625285428,0.00029925,101920.0,101910.0,0.52626101]
[1737625285898,0.00029925,101920.0,101910.0,0.248125]
[1737625286153,0.00029925,101920.0,101910.0,0.35891372]
[1737625286389,0.00029925,101920.0,101910.0,0.248125]
[1737625286862,0.00029925,101920.0,101910.0,0.35891372]
[1737625287199,0.0711985,101930.0,101920.0,0.098116]
[1737625288484,0.0711985,101930.0,101920.0,0.09826689]
[1737625290603,0.07149775,101930.0,101920.0,0.09826689]
[1737625291988,0.07149775,101930.0,101920.0,0.09924792]
[1737625292385,0.00029925,101930.0,101920.0,0.36003664]
[1737625292590,0.00029925,101930.0,101920.0,0.35905561]
[1737625293341,0.00029925,101930.0,101920.0,0.46628549]
[1737625296868,0.00029925,101930.0,101920.0,0.48628549]
[1737625297074,0.00029925,101930.0,101920.0,0.53628549]
[1737625297383,0.00029925,101930.0,101920.0,0.58578549]
[1737625300480,0.00029925,101930.0,101920.0,0.46628549]
[1737625300692,0.00029925,101930.0,101920.0,0.53628549]
[1737625302595,0.00029925,101930.0,101920.0,0.48628549]
[1737625302881,0.00029925,101930.0,101920.0,0.53642789]
[1737625303942,0.00029925,101930.0,101920.0,0.56692618]
[1737625305620,0.00029925,101930.0,101920.0,0.53642789]
[1737625305990,0.00029925,101930.0,101920.0,0.5669206]
[1737625306359,0.00029925,101930.0,101920.0,0.53642789]
[1737625307550,0.00029925,101930.0,101920.0,0.48642789]
[1737625309637,0.00029925,101930.0,101920.0,0.53642789]
[1737625313856,0.00029925,101930.0,101920.0,0.46642789]
[1737625314041,0.00029925,101930.0,101920.0,0.48642789]
[1737625316109,0.00029925,101930.0,101920.0,0.53642789]
[1737625317033,0.00029925,101930.0,101920.0,0.61552789]
[1737625318109,0.00029925,101930.0,101920.0,0.64602387]
[1737625318280,0.00029925,101930.0,101920.0,0.59602387]
[1737625318487,0.00029925,101930.0,101920.0,0.64602387]
[1737625320110,2.5e-07,101930.0,101920.0,0.75681259]
[1737625320288,2.5e-07,101930.0,101920.0,0.82751259]
[1737625320509,0.00029904,101950.0,101940.0,0.148096]
[1737625320719,0.00029904,101950.0,101940.0,0.098096]
[1737625320904,0.12529904,101950.0,101940.0,0.098096]
[1737625323513,0.12529904,101950.0,101940.0,0.35888472]
[1737625323656,0.12529904,101950.0,101940.0,0.248096]
[1737625325699,0.07699904,101950.0,101940.0,0.35888472]
[1737625325911,0.07699904,101950.0,101940.0,0.40902712]
[1737625327167,0.00029904,101950.0,101940.0,0.40902712]
[1737625327385,0.00029904,101950.0,101940.0,0.61716313]
[1737625327843,0.00029904,101950.0,101940.0,0.50637441]
[1737625329404,0.00029904,101950.0,101940.0,0.45637441]
[1737625329638,0.12609904,101950.0,101940.0,0.2482384]
[1737625329815,0.12609904,101950.0,101940.0,0.0982384]
[1737625331445,0.12609904,101950.0,101940.0,0.2482384]
[1737625332894,0.12609904,101950.0,101940.0,0.25818048]
[1737625334783,0.12609904,101950.0,101940.0,0.2482384]
[1737625334985,0.12609904,101950.0,101940.0,0.0982384]
[1737625335516,0.22418604,101950.0,101940.0,0.0982384]
[1737625336678,0.12609904,101950.0,101940.0,0.0982384]
[1737625340321,0.22418604,101950.0,101940.0,0.0982384]
[1737625340547,0.22418604,101950.0,101940.0,0.0001424]
[1737625341121,0.22418604,101950.0,101940.0,0.0982384]
[1737625341329,0.22418604,101950.0,101940.0,0.0001424]
[1737625341330,0.32153333,101950.0,101940.0,0.0001424]
[1737625341534,0.45532205,101950.0,101940.0,0.0001424]
[1737625344755,0.47526711,101950.0,101940.0,0.0001424]
[1737625346197,0.36447839,101950.0,101940.0,0.0001424]
[1737625347564,0.34453333,101950.0,101940.0,0.0001424]
[1737625349379,0.62153333,101950.0,101940.0,0.0982384]
[1737625349815,0.32153333,101950.0,101940.0,0.0982384]
[1737625350034,0.62153333,101950.0,101940.0,0.0982384]
[1737625350208,0.42609904,101950.0,101940.0,0.0982384]
[1737625350412,0.37779904,101950.0,101940.0,0.0982384]
[1737625351012,0.47588604,101950.0,101940.0,0.0982384]
[1737625352075,0.37779904,101950.0,101940.0,0.0982384]
[1737625352570,0.47588604,101950.0,101940.0,0.0982384]
[1737625353280,0.38402205,101950.0,101940.0,0.0001424]
[1737625353492,0.40702205,101950.0,101940.0,0.0001424]
[1737625353692,0.29623333,101950.0,101940.0,0.0001424]
[1737625353900,0.57323333,101950.0,101940.0,0.0982384]
[1737625355863,0.37779904,101950.0,101940.0,0.0982384]
[1737625356893,0.47588604,101950.0,101940.0,0.0982384]
[1737625357344,0.47588604,101950.0,101940.0,0.0001424]
[1737625357569,0.50436934,101950.0,101940.0,0.0001424]
[1737625358650,0.29623333,101950.0,101940.0,0.0001424]
[1737625360253,0.40702205,101950.0,101940.0,0.0001424]
[1737625362897,0.29623333,101950.0,101940.0,0.0001424]
[1737625364242,0.40702205,101950.0,101940.0,0.0001424]
[1737625364481,0.29623333,101950.0,101940.0,0.0001424]
[1737625364805,0.50436934,101950.0,101940.0,0.0001424]
[1737625366246,0.30615435,101950.0,101940.0,0.0001424]
[1737625367104,0.29737235,101950.0,101940.0,0.0001424]
[1737625368786,0.40816107,101950.0,101940.0,0.0001424]
[1737625369204,0.29737235,101950.0,101940.0,0.0001424]
[1737625370736,0.398096,101940.0,101930.0,0.09808246]
[1737625370971,0.49544329,101940.0,101930.0,0.09808246]
[1737625372583,0.30029925,101950.0,101940.0,0.098096]
[1737625373215,0.00029925,101950.0,101940.0,0.098096]
[1737625374032,0.09838625,101950.0,101940.0,0.098096]
[1737625374240,0.29458125,101950.0,101940.0,0.098096]
[1737625375241,0.3,101940.0,101930.0,0.294295]
[1737625375446,0.398096,101940.0,101930.0,0.294295]
[1737625375686,0.3,101940.0,101930.0,0.294295]
[1737625376814,0.790493,101940.0,101920.0,0.49083729]
[1737625377012,0.594296,101940.0,101930.0,0.098106]
[1737625377232,0.790499,101940.0,101920.0,0.49083929]
[1737625377470,0.790499,101940.0,101920.0,0.68706029]
[1737625377665,0.594296,101940.0,101930.0,0.098106]
[1737625378068,0.3,101940.0,101930.0,0.098106]
[1737625379900,0.30029925,101950.0,101940.0,0.098096]
[1737625380947,0.00029925,101950.0,101940.0,0.098096]
[1737625381160,0.00029925,101950.0,101940.0,0.20986557]
[1737625381304,0.00029925,101950.0,101940.0,0.09907685]
[1737625384431,0.00029925,101950.0,101940.0,0.09907678]
[1737625385259,0.00029925,101950.0,101940.0,0.098096]
[1737625389153,0.3,101940.0,101930.0,0.20616479]
[1737625389364,0.3,101940.0,101930.0,0.0001425]
[1737625389564,0.398096,101940.0,101930.0,0.0982485]
[1737625390190,0.3,101940.0,101930.0,0.0982485]
[1737625390623,0.30029925,101950.0,101940.0,0.098096]
[1737625391011,0.00029925,101950.0,101940.0,0.098096]
[1737625392648,0.00029925,101950.0,101940.0,0.1458768]
[1737625393858,0.00029925,101950.0,101940.0,0.144896]
[1737625394101,0.00029925,101950.0,101940.0,0.098096]
[1737625394319,0.294235,101960.0,101950.0,0.098087]
[1737625394644,0.78143601,101960.0,101940.0,0.490445]
[1737625394855,0.97760301,101960.0,101940.0,0.294265]
[1737625395009,0.97760301,101960.0,101940.0,0.490449]
[1737625395010,0.78143601,101960.0,101940.0,0.490449]
[1737625395223,0.78143601,101960.0,101940.0,0.294265]
[1737625395224,0.3,101950.0,101940.0,0.294265]
[1737625395392,0.398087,101950.0,101940.0,0.294265]
[1737625395593,0.41634881,101950.0,101940.0,0.294265]
[1737625396007,0.41634881,101950.0,101940.0,0.2944075]
[1737625396206,0.41664806,101950.0,101940.0,0.2944075]
[1737625396411,0.60693678,101950.0,101940.0,0.0982305]
[1737625396621,0.47788625,101950.0,101940.0,0.0982305]
[1737625397624,0.47788625,101950.0,101940.0,0.0982385]
[1737625397979,0.47788625,101950.0,101940.0,0.0001425]
[1737625398188,0.58867497,101950.0,101940.0,0.0001425]
[1737625398394,0.38602226,101950.0,101940.0,0.0001425]
[1737625399437,0.38602226,101950.0,101940.0,0.0982385]
[1737625399438,0.27523354,101950.0,101940.0,0.0982385]
[1737625399801,0.27523354,101950.0,101940.0,0.0001425]
[1737625400646,0.44835645,101950.0,101940.0,0.0001425]
[1737625401123,0.27523354,101950.0,101940.0,0.0001425]
[1737625402812,0.27523354,101950.0,101940.0,0.0982385]
[1737625403033,0.27523354,101950.0,101940.0,0.0001425]
[1737625403870,0.38602226,101950.0,101940.0,0.0001425]
[1737625405551,0.27523354,101950.0,101940.0,0.0001425]
[1737625409662,0.37258083,101950.0,101940.0,0.0001425]
[1737625410738,0.27523354,101950.0,101940.0,0.0001425]
[1737625410908,0.40902226,101950.0,101940.0,0.0001425]
[1737625411727,0.29823354,101950.0,101940.0,0.0001425]
[1737625411991,0.40902226,101950.0,101940.0,0.0001425]
[1737625412372,0.29823354,101950.0,101940.0,0.0001425]
[1737625413556,0.27523354,101950.0,101940.0,0.0001425]
[1737625413758,0.39764654,101950.0,101940.0,0.0982385]
[1737625413998,0.49573354,101950.0,101940.0,0.0982385]
[1737625414375,0.39764654,101950.0,101940.0,0.0982385]
[1737625414581,0.30029925,101950.0,101940.0,0.0982385]
[1737625414759,0.00029925,101950.0,101940.0,0.1779385]
[1737625416935,0.01857767,101950.0,101940.0,0.1779385]
[1737625418431,0.00029925,101950.0,101940.0,0.1779385]
[1737625419125,0.00029925,101950.0,101940.0,0.17891938]
[1737625419557,0.00029925,101950.0,101940.0,0.22541938]
[1737625419765,0.00029925,101950.0,101940.0,0.1447385]
[1737625420199,0.30029925,101950.0,101940.0,0.0982385]
[1737625422525,0.30029925,101950.0,101940.0,0.09921937]
[1737625422526,0.00029925,101950.0,101940.0,0.09921937]
[1737625423393,0.00029925,101950.0,101940.0,0.1467385]
[1737625424560,0.00029925,101950.0,101940.0,0.0982385]
[1737625429472,0.09838625,101950.0,101940.0,0.0001425]
[1737625429685,0.39838625,101950.0,101940.0,0.0001425]
[1737625429882,0.49573354,101950.0,101940.0,0.0001425]
[1737625430088,0.59308083,101950.0,101940.0,0.0001425]
[1737625430491,0.67418083,101950.0,101940.0,0.0001425]
[1737625430926,0.0811,101950.0,101940.0,0.0001425]
[1737625431128,0.179187,101950.0,101940.0,0.0001425]
[1737625435777,0.38732301,101950.0,101940.0,0.0001425]
[1737625436158,0.56032301,101950.0,101940.0,0.0001425]
[1737625440619,0.57000795,101950.0,101940.0,0.0001425]
[1737625441316,0.66735524,101950.0,101940.0,0.0001425]
[1737625442601,0.57000795,101950.0,101940.0,0.0001425]
[1737625444582,0.59000795,101950.0,101940.0,0.0001425]
[1737625444779,0.63510795,101950.0,101940.0,0.0001425]
[1737625444983,0.63510795,101950.0,101930.0,0.0001425]
[1737625444984,0.61510795,101950.0,101930.0,0.0001425]
[1737625445365,0.462306,101930.0,101920.0,0.00029329]
[1737625445574,0.60044201,101930.0,101920.0,0.00029329]
[1737625445818,0.70044201,101930.0,101920.0,0.00029329]
[1737625446833,0.62044201,101930.0,101920.0,0.00029329]
[1737625447052,0.60044201,101930.0,101920.0,0.00029329]
[1737625447389,0.62044201,101930.0,101920.0,0.00029329]
[1737625447624,0.60044201,101930.0,101920.0,0.00029329]
[1737625448471,0.6977893,101930.0,101920.0,0.00029329]
[1737625451370,0.71790323,101930.0,101920.0,0.00029329]
[1737625451974,0.72780788,101930.0,101920.0,0.00029329]
[1737625452380,0.8385966,101930.0,101920.0,0.00029329]
[1737625453737,0.9385966,101930.0,101920.0,0.00029329]
[1737625454797,0.417725,101910.0,101900.0,0.1]
[1737625455004,0.417725,101910.0,101900.0,0.10015094]
[1737625455005,0.80688291,101910.0,101900.0,0.10015094]
[1737625455218,0.89767163,101910.0,101900.0,0.10015094]
[1737625455865,0.94767163,101910.0,101900.0,0.10015094]
[1737625456068,0.89767163,101910.0,101900.0,0.10015094]
[1737625460068,0.90729985,101910.0,101900.0,0.10015094]
[1737625460262,1.23099985,101910.0,101900.0,0.10015094]
[1737625460513,1.25091147,101910.0,101900.0,0.10015094]
[1737625466168,0.92721147,101910.0,101900.0,0.10015094]
[1737625467119,0.92721147,101910.0,101900.0,0.10029344]
[1737625468492,0.92721147,101910.0,101900.0,0.07999236]
[1737625468493,0.93231424,101910.0,101900.0,0.07999236]
[1737625468753,0.3206,101890.0,101880.0,0.00906371]
[1737625468904,0.65894101,101890.0,101880.0,0.00916231]
[1737625469670,0.73766973,101890.0,101880.0,0.00916231]
[1737625470533,0.62688101,101890.0,101880.0,0.00916231]
[1737625476141,0.64677768,101890.0,101880.0,0.00916231]
[1737625479777,0.55891601,101890.0,101880.0,0.00916231]
[1737625480321,0.57891601,101890.0,101880.0,0.00916231]
[1737625480521,0.59366373,101890.0,101880.0,0.00916231]
[1737625484692,0.54366373,101890.0,101880.0,0.00916231]
[1737625484963,0.59366373,101890.0,101880.0,0.00916231]
[1737625485483,0.54366373,101890.0,101880.0,0.00916231]
[1737625485706,0.57863961,101890.0,101880.0,0.00916231]
[1737625485912,0.50575731,101890.0,101880.0,0.00916231]
[1737625486149,0.57863961,101890.0,101880.0,0.00916231]
[1737625486509,0.50575731,101890.0,101880.0,0.00916231]
[1737625487220,0.49100959,101890.0,101880.0,0.00916231]
[1737625494843,0.57837061,101890.0,101880.0,0.00916231]
[1737625496556,0.55837061,101890.0,101880.0,0.00916231]
[1737625496731,0.82873561,101890.0,101880.0,0.00916231]
[1737625498391,0.90161791,101890.0,101880.0,0.00916231]
[1737625498542,0.9260829,101890.0,101880.0,0.00916231]
[1737625500599,0.94555595,101890.0,101880.0,0.00916231]
[1737625501568,0.84820866,101890.0,101880.0,0.00916231]
[1737625504686,0.94109096,101890.0,101880.0,0.00916231]
[1737625505104,0.86820866,101890.0,101880.0,0.00916231]
[1737625506365,0.76084764,101890.0,101880.0,0.00916231]
[1737625507004,0.78084764,101890.0,101880.0,0.00916231]
[1737625507210,0.87819493,101890.0,101880.0,0.00916231]
[1737625508049,0.85819493,101890.0,101880.0,0.00916231]
[1737625508261,0.76084764,101890.0,101880.0,0.00916231]
[1737625509051,0.74137459,101890.0,101880.0,0.00916231]
[1737625509275,0.51849229,101890.0,101880.0,0.08736231]
[1737625509583,0.51849229,101890.0,101880.0,0.23281631]
[1737625509584,0.398145,101890.0,101880.0,0.23281631]
[1737625509987,0.56837459,101890.0,101880.0,0.13466231]
[1737625516644,0.49549229,101890.0,101880.0,0.13466231]
[1737625516862,0.3,101890.0,101880.0,0.23281631]
[1737625517207,0.398145,101890.0,101880.0,0.23281631]
[1737625518468,0.3,101890.0,101880.0,0.23281631]
[1737625518673,0.38255093,101900.0,101890.0,0.178245]
[1737625518674,0.48626693,101900.0,101890.0,0.178245]
[1737625518895,0.48626693,101900.0,101890.0,0.226645]
[1737625519304,0.08812693,101900.0,101890.0,0.226645]
[1737625521537,0.00029925,101900.0,101890.0,0.226645]
[1737625522722,0.09843425,101900.0,101890.0,0.226645]
[1737625522934,0.17131655,101900.0,101890.0,0.1285]
[1737625523164,0.66454614,101900.0,101890.0,0.0484]
[1737625523375,0.098145,101890.0,101880.0,0.18761631]
[1737625525013,0.098145,101890.0,101880.0,0.08946231]
[1737625525158,0.098145,101890.0,101880.0,0.18761631]
[1737625525753,0.098145,101890.0,101880.0,0.08761631]
[1737625526272,1.15752984,101900.0,101880.0,0.28392231]
[1737625526612,0.098145,101890.0,101880.0,0.08761631]
[1737625526813,0.098145,101890.0,101870.0,0.45105872]
[1737625527020,0.294438,101890.0,101870.0,0.54931334]
[1737625527220,0.294438,101890.0,101870.0,0.74563034]
[1737625528332,0.294438,101890.0,101870.0,0.54931334]
[1737625528736,0.294438,101890.0,101870.0,0.74563134]
[1737625528973,0.490731,101890.0,101870.0,0.61778462]
[1737625529150,0.39178529,101890.0,101870.0,0.81410262]
[1737625529346,0.294438,101890.0,101870.0,0.81410262]
[1737625529552,0.294438,101890.0,101870.0,0.61778462]
[1737625529894,0.294438,101890.0,101870.0,0.81410162]
[1737625530325,0.294438,101890.0,101880.0,0.098154]
[1737625530539,0.97080891,101900.0,101880.0,0.294459]
[1737625530742,0.098145,101890.0,101880.0,0.294459]
[1737625530981,0.97080891,101900.0,101880.0,0.294459]
[1737625531172,1.06894791,101900.0,101880.0,0.294459]
[1737625531388,0.89792361,101900.0,101880.0,0.294459]
[1737625531628,1.16708891,101900.0,101880.0,0.294459]
[1737625532015,1.09420661,101900.0,101880.0,0.294459]
[1737625532564,0.96123584,101900.0,101880.0,0.490764]
[1737625532765,0.96123584,101900.0,101880.0,0.490768]
[1737625532965,0.69207054,101900.0,101880.0,0.39075]
[1737625533216,0.69207054,101900.0,101880.0,0.488902]
[1737625533948,0.88835354,101900.0,101880.0,0.488902]
[1737625534309,0.88834154,101900.0,101880.0,0.488902]
[1737625534509,0.30029925,101900.0,101890.0,0.144345]
[1737625534728,0.00029925,101900.0,101890.0,0.144345]
[1737625535816,0.00029925,101900.0,101890.0,0.044345]
[1737625536017,0.00029925,101900.0,101890.0,0.14249]
[1737625536909,0.9387313,101910.0,101890.0,0.14249]
[1737625536910,0.93757431,101910.0,101890.0,0.14249]
[1737625537090,1.0349216,101910.0,101890.0,0.338775]
[1737625538498,1.0349216,101910.0,101890.0,0.53506]
[1737625539503,0.7657793,101910.0,101890.0,0.53506]
[1737625539681,0.9620393,101910.0,101890.0,0.43506]
[1737625539886,1.2311856,101910.0,101890.0,0.294426]
[1737625540082,1.0349216,101910.0,101890.0,0.294426]
[1737625540260,0.098135,101900.0,101890.0,0.294426]
[1737625540460,0.9367896,101910.0,101880.0,0.471793]
[1737625540779,1.03413689,101910.0,101890.0,0.098144]
[1737625540976,1.32853389,101910.0,101890.0,0.29443]
[1737625541319,0.84264059,101900.0,101880.0,0.490738]
[1737625541638,0.94078859,101900.0,101880.0,0.098147]
[1737625541822,0.098145,101890.0,101880.0,0.098147]
[1737625543058,0.19549229,101890.0,101880.0,0.098147]
[1737625543288,0.098145,101890.0,101880.0,0.098147]
[1737625544125,0.96604929,101900.0,101880.0,0.294451]
[1737625544328,0.66604729,101900.0,101880.0,0.49075]
[1737625544530,0.96604729,101900.0,101880.0,0.490746]
[1737625545105,0.66604729,101900.0,101880.0,0.294446]
[1737625545325,0.96604729,101900.0,101880.0,0.490755]
[1737625545957,1.16232929,101900.0,101880.0,0.490755]
[1737625546147,1.06418629,101900.0,101880.0,0.294446]
[1737625546329,0.098145,101890.0,101880.0,0.294446]
[1737625546529,1.16232929,101900.0,101880.0,0.294446]
[1737625547114,0.96604729,101900.0,101880.0,0.294446]
[1737625547341,0.96604729,101900.0,101880.0,0.490754]
[1737625547668,1.16232929,101900.0,101880.0,0.490754]
[1737625547905,1.16232929,101900.0,101880.0,0.503154]
[1737625548114,0.098145,101890.0,101880.0,0.306846]
[1737625548297,0.96618879,101900.0,101880.0,0.503146]
[1737625548603,0.76990779,101900.0,101880.0,0.503146]
[1737625548831,0.96618779,101900.0,101880.0,0.503146]
[1737625549733,0.76990779,101900.0,101880.0,0.503145]
[1737625549941,0.4762845,101900.0,101890.0,0.098145]
[1737625550153,0.1762775,101900.0,101890.0,0.098145]
[1737625550501,0.0781425,101900.0,101890.0,0.098145]
[1737625550704,0.0001425,101900.0,101890.0,0.223645]
[1737625550922,0.0001425,101900.0,101890.0,0.235965]
[1737625551345,0.0982775,101900.0,101890.0,0.235965]
[1737625551545,0.0982775,101900.0,101890.0,0.159765]
[1737625551888,0.0001425,101900.0,101890.0,0.159765]
[1737625553772,0.0982775,101900.0,101890.0,0.159765]
[1737625553978,0.0982775,101900.0,101890.0,0.110465]
[1737625555415,0.0982775,101900.0,101890.0,0.098145]
[1737625555584,0.0982775,101900.0,101890.0,0.110385]
[1737625555791,0.1803775,101900.0,101890.0,0.01224]
[1737625555999,0.1803775,101900.0,101880.0,0.732437]
[1737625556179,0.3766565,101900.0,101890.0,0.110385]
[1737625556986,0.594445,101890.0,101880.0,0.098154]
[1737625560336,0.594445,101890.0,101880.0,0.09845325]
[1737625560946,0.0001425,101900.0,101890.0,0.0493]
[1737625561147,0.0001425,101900.0,101890.0,0.16058635]
[1737625561352,0.0982775,101900.0,101890.0,0.110305]
[1737625561588,0.88412403,101900.0,101880.0,0.29473825]
[1737625561794,0.098145,101890.0,101880.0,0.09844625]
[1737625561995,0.098145,101890.0,101880.0,0.29474825]
[1737625562202,1.32399503,101900.0,101880.0,0.29474825]
[1737625562397,0.098145,101890.0,101880.0,0.29474825]
[1737625563049,1.32478574,101900.0,101880.0,0.29474825]
[1737625564262,0.098145,101890.0,101880.0,0.29474825]
[1737625564945,1.32478574,101900.0,101880.0,0.29474825]
[1737625567143,0.098145,101890.0,101880.0,0.29474825]
[1737625567806,0.20915195,101890.0,101880.0,0.00029925]
[1737625568046,0.38259924,101890.0,101880.0,0.00029925]
[1737625568463,0.174245,101890.0,101880.0,0.09845325]
[1737625573137,0.1743875,101890.0,101880.0,0.09845325]
[1737625576262,0.1743875,101890.0,101880.0,0.09175325]
[1737625579238,0.0001425,101890.0,101880.0,0.09175325]
[1737625580677,0.0001425,101890.0,101880.0,0.16460782]
[1737625580885,0.0001425,101890.0,101880.0,0.46309117]
[1737625581086,0.0001425,101890.0,101880.0,0.29190782]
[1737625581603,0.0001425,101890.0,101880.0,0.21905325]
[1737625581811,0.0001425,101890.0,101880.0,0.29190782]
[1737625582057,0.0001425,101890.0,101880.0,0.44190782]
[1737625582260,0.0001425,101890.0,101880.0,0.61210968]
[1737625584244,0.0001425,101890.0,101880.0,0.61225218]
[1737625585700,0.0001425,101890.0,101880.0,0.46654304]
[1737625586109,0.0001425,101890.0,101880.0,0.57750601]
[1737625587731,0.0001425,101890.0,101880.0,0.58725688]
[1737625588362,0.0001425,101890.0,101880.0,0.39799391]
[1737625588566,0.0001425,101890.0,101880.0,0.25164662]
[1737625591206,0.0777425,101890.0,101880.0,0.24189575]
[1737625591382,0.0777425,101890.0,101880.0,0.25385575]
[1737625592733,0.0777425,101890.0,101880.0,0.24189575]
[1737625593613,0.0777425,101890.0,101880.0,0.09189575]
[1737625593859,0.17508979,101890.0,101880.0,0.09189575]
[1737625594362,0.0777425,101890.0,101880.0,0.09189575]
[1737625597902,0.0001425,101890.0,101880.0,0.09189575]
[1737625602471,0.0001425,101890.0,101880.0,0.36829575]
[1737625602672,0.0001425,101890.0,101880.0,0.57660601]
[1737625604648,0.0001425,101890.0,101880.0,0.46564304]
[1737625604855,0.0001425,101890.0,101880.0,0.38844304]
[1737625605346,0.0001425,101890.0,101880.0,0.49940601]
[1737625605939,0.0001425,101890.0,101880.0,0.58220601]
[1737625607516,0.0001425,101890.0,101880.0,0.76316898]
[1737625607717,0.0001425,101890.0,101880.0,0.65220601]
[1737625607966,0.0001425,101890.0,101880.0,0.68271215]
[1737625608166,0.0001425,101890.0,101880.0,0.65220601]
[1737625608367,0.0001425,101890.0,101880.0,0.63220601]
[1737625610049,0.0001425,101890.0,101880.0,0.65220601]
[1737625614524,0.0001425,101890.0,101880.0,0.54940601]
[1737625614732,0.0001425,101890.0,101880.0,0.56940601]
[1737625616659,0.0001425,101890.0,101880.0,0.58100601]
[1737625618253,0.0001425,101890.0,101880.0,0.62024801]
[1737625619642,0.0001425,101890.0,101880.0,0.60024801]
[1737625619845,0.0001425,101890.0,101880.0,0.63491004]
[1737625620840,0.0001425,101890.0,101880.0,0.42365554]
[1737625621245,0.0001425,101890.0,101880.0,0.10333575]
[1737625621246,0.0826425,101890.0,101880.0,0.10333575]
[1737625621407,0.0001425,101890.0,101880.0,0.34630804]
[1737625621764,0.0001425,101890.0,101880.0,0.49630804]
[1737625621922,0.0001425,101890.0,101880.0,0.54630804]
[1737625622481,0.0001425,101890.0,101880.0,0.49630804]
[1737625622783,0.0001425,101890.0,101880.0,0.54630804]
[1737625627001,0.0001425,101890.0,101880.0,0.49630804]
[1737625627315,0.0001425,101890.0,101880.0,0.54630804]
[1737625628755,0.08135462,101900.0,101890.0,0.3209575]
[1737625628927,0.08135462,101900.0,101890.0,0.41830479]
[1737625633505,0.08135462,101900.0,101890.0,0.34549229]
[1737625634751,0.13045462,101900.0,101890.0,0.098145]
[1737625635113,0.13045462,101900.0,101890.0,0.26830479]
[1737625635709,0.13045462,101900.0,101890.0,0.27809796]
[1737625635913,0.08135462,101900.0,101890.0,0.42809796]
[1737625639074,0.075,101910.0,101900.0,0.294399]
[1737625639305,0.075,101910.0,101900.0,0.46455879]
[1737625643030,0.0751424,101910.0,101900.0,0.46455879]
[1737625643523,0.0751424,101910.0,101900.0,0.47583879]
[1737625646879,0.0751424,101910.0,101900.0,0.40302629]
[1737625647088,0.0751424,101910.0,101900.0,0.47583879]
[1737625647246,0.0751424,101910.0,101900.0,0.40302629]
[1737625647582,0.0001424,101910.0,101900.0,0.88856379]
[1737625647788,4e-07,101910.0,101900.0,0.96446379]
[1737625647998,4e-07,101910.0,101900.0,0.92219437]
[1737625648191,4e-07,101910.0,101900.0,0.65642187]
[1737625648528,4e-07,101910.0,101900.0,0.62587879]
[1737625649487,4e-07,101910.0,101900.0,0.69869129]
[1737625649900,4e-07,101910.0,101900.0,0.62587879]
[1737625660207,4e-07,101910.0,101900.0,0.62555879]
[1737625661523,0.0808004,101910.0,101900.0,0.62555879]
[1737625665348,4e-07,101910.0,101900.0,0.69837129]
[1737625665553,4e-07,101910.0,101900.0,0.69867033]
[1737625669942,4e-07,101910.0,101900.0,0.62585783]
[1737625670075,4e-07,101910.0,101900.0,0.69867033]
[1737625670275,4e-07,101910.0,101900.0,0.62585783]
[1737625671189,4e-07,101910.0,101900.0,0.69867033]
[1737625671388,4e-07,101910.0,101900.0,0.62585783]
[1737625672253,4e-07,101910.0,101900.0,0.69867033]
[1737625672458,4e-07,101910.0,101900.0,0.62585783]
[1737625672658,4e-07,101910.0,101900.0,0.67941575]
[1737625672816,4e-07,101910.0,101900.0,0.64885783]
[1737625673853,4e-07,101910.0,101900.0,0.67942228]
[1737625674866,4e-07,101910.0,101900.0,0.72167033]
[1737625675364,0.12417925,101920.0,101910.0,0.15]
[1737625675564,0.0792,101920.0,101910.0,0.44226592]
[1737625675810,0.0792,101920.0,101910.0,0.44128479]
[1737625676566,0.0792,101920.0,101910.0,0.44138241]
[1737625677397,0.0792,101920.0,101910.0,0.47193811]
[1737625677780,0.07739925,101930.0,101920.0,0.098116]
[1737625677984,0.07739925,101930.0,101920.0,0.3209285]
[1737625678872,0.07739925,101930.0,101920.0,0.3439285]
[1737625679064,0.07739925,101930.0,101920.0,0.51408829]
[1737625680418,0.00029925,101930.0,101920.0,0.63978829]
[1737625680819,0.0002102,101930.0,101920.0,0.63978829]
[1737625681051,0.0002102,101930.0,101920.0,0.56198829]
[1737625682662,0.0763102,101930.0,101920.0,0.44127579]
[1737625682868,0.0763102,101930.0,101920.0,0.258836]
[1737625684405,0.0763102,101930.0,101920.0,0.258996]
[1737625684823,0.07619458,101930.0,101920.0,0.258996]
[1737625689333,0.12369458,101930.0,101920.0,0.10937504]
[1737625689506,0.12369458,101930.0,101920.0,0.09841504]
[1737625689507,0.49650708,101930.0,101920.0,0.09841504]
[1737625689712,0.59461308,101930.0,101920.0,0.09841504]
[1737625689902,0.52180058,101930.0,101920.0,0.09841504]
[1737625690097,0.61914787,101930.0,101920.0,0.09841504]
[1737625690540,0.52180058,101930.0,101920.0,0.09841504]
[1737625693837,0.61914787,101930.0,101920.0,0.00029904]
[1737625695909,0.45007366,101930.0,101920.0,0.00029904]
[1737625697165,0.48007366,101930.0,101920.0,0.00029904]
[1737625697354,0.65214179,101920.0,101910.0,9.762e-05]
[1737625697601,1.02683637,101920.0,101910.0,9.762e-05]
[1737625700489,1.11466405,101920.0,101910.0,9.762e-05]
[1737625700965,1.11466405,101920.0,101910.0,0.00039666]
[1737625701628,1.06466405,101920.0,101910.0,0.00039666]
[1737625702299,0.87639097,101920.0,101910.0,0.00039666]
[1737625702301,0.72639097,101920.0,101910.0,0.00039666]
[1737625702717,0.70639097,101920.0,101910.0,0.09852166]
[1737625702924,0.70639097,101920.0,101910.0,0.00039666]
[1737625703129,0.70639097,101920.0,101910.0,0.09852166]
[1737625704101,0.73560626,101920.0,101910.0,0.00039666]
[1737625704306,0.84653205,101920.0,101910.0,0.00039666]
[1737625704484,0.75870437,101920.0,101910.0,0.00039666]
[1737625705071,0.77870437,101920.0,101910.0,0.00039666]
[1737625705249,0.75870437,101920.0,101910.0,0.00039666]
[1737625705678,0.80870437,101920.0,101910.0,0.00039666]
[1737625705998,0.75870437,101920.0,101910.0,0.00039666]
[1737625706200,0.80870437,101920.0,101910.0,0.00039666]
[1737625707636,0.77948908,101920.0,101910.0,0.00039666]
[1737625707813,0.79948908,101920.0,101910.0,0.00039666]
[1737625707999,0.77948908,101920.0,101910.0,0.00039666]
[1737625710967,0.92948908,101920.0,101910.0,0.00039666]
[1737625714744,0.88927984,101920.0,101910.0,0.00039666]
[1737625714965,0.93927984,101920.0,101910.0,0.00039666]